[Event "8th Mersin Open 2024"]
[Site "Mersin"]
[Date "2024.11.14"]
[Round "7"]
[White "Akkara, Omer"]
[Black "Turker, Esat Tuna"]
[Result "1/2-1/2"]
[ECO "D14"]
[WhiteElo "2103"]
[BlackElo "2050"]
[Annotator "RC"]
[PlyCount "140"]
[EventDate "2024.11.10"]
[EventType "swiss"]
[EventCountry "TUR"]
[SourceTitle "playchess.com"]
[Source "ChessBase"]
[SourceQuality "1"]
[TimeControl "5400+30"]

1. d4 {[%emt 0:01:00]} d5 {[%emt 0:03:00]} 2. c4 {[%emt 0:00:30]} c6 {[%emt 0:00:00]} 3. cxd5 {[%emt 0:00:30]} cxd5 {[%emt 0:00:00]} 4. Nf3 {[%emt 0:00:00]} Nc6 {[%emt 0:01:30]} 5. Nc3 {[%emt 0:00:00]} Nf6 {[%emt 0:00:30]} 6. Bf4 {[%emt 0:00:30]} Bf5 {[%emt 0:02:30]} 7. e3 {[%emt 0:01:30]} Qb6 {[%emt 0:00:30]} 8. Qb3 {[%emt 0:01:30]} Qxb3 {[%emt 0:04:30]} 9. axb3 {[%emt 0:00:00]} e6 {[%emt 0:00:30]} 10. Bb5 {[%emt 0:00:00]} Nd7 {[%emt 0:00:30]} 11. O-O {[%emt 0:01:30]} Be7 {[%emt 0:01:30]} 12. Ra4 {[%emt 0:05:30]} Nb6 {[%emt 0:29:30]} 13. Ra2 {[%emt 0:00:30]} f6 {[%emt 0:00:30]} 14. Rfa1 {[%emt 0:01:30]} Kf7 {[%emt 0:00:30]} 15. Bxc6 {[%emt 0:01:30]} bxc6 {[%emt 0:00:30]} 16. Rxa7 {[%emt 0:00:00]} Rxa7 {[%emt 0:00:30]} 17. Rxa7 {[%emt 0:00:00]} Ra8 {[%emt 0:00:30]} 18. Rxa8 {[%emt 0:00:30]} Nxa8 {[%emt 0:00:00]} 19. Ne1 {[%emt 0:01:30]} Nb6 {[%emt 0:02:00]} 20. Kf1 {[%emt 0:01:30]} Nd7 {[%emt 0:05:30]} 21. f3 {[%emt 0:01:30]} e5 {[%emt 0:04:30]} 22. Bg3 {[%emt 0:00:30]} Bg6 {[%emt 0:00:00]} 23. Ke2 {[%emt 0:01:30]} Ke6 {[%emt 0:04:00]} 24. Nd3 {[%emt 0:01:30]} Bd6 {[%emt 0:16:30]} 25. Bf2 {[%emt 0:11:30]} h5 {[%emt 0:03:30]} 26. h3 {[%emt 0:01:30]} e4 {[%emt 0:04:16]} 27. fxe4 {[%emt 0:01:30]} Bxe4 {[%emt 0:00:32]} 28. Nxe4 {[%emt 0:00:30]} dxe4 {[%emt 0:00:30]} 29. Nc1 {[%emt 0:00:30]} Nb6 {[%emt 0:02:51]} 30. Na2 {[%emt 0:00:00]} Nd5 {[%emt 0:02:28]} 31. Nc3 {[%emt 0:00:00]} f5 {[%emt 0:00:00]} 32. Nxd5 {[%emt 0:00:30]} cxd5 {[%emt 0:02:42]} 33. Bh4 {[%emt 0:03:30]} Kd7 {[%emt 0:02:23]} 34. Bg5 {[%emt 0:00:30]} Kc6 {[%emt 0:00:30]} 35. Kd2 {[%emt 0:00:30]} Kb5 {[%emt 0:00:30]} 36. Kc2 {[%emt 0:00:30]} Bg3 {[%emt 0:02:10]} 37. Kc3 {[%emt 0:00:30]} Be1+ {[%emt 0:00:30]} 38. Kc2 {[%emt 0:00:30]} Bg3 {[%emt 0:00:30]} 39. Kd2 {[%emt 0:00:30]} Kb4 {[%emt 0:00:30]} 40. Kc2 {[%emt 0:00:30]} Kb5 {[%emt 0:03:36]} 41. Be7 {[%emt 0:00:30]} g6 {[%emt 0:00:30]} 42. Kd1 {[%emt 0:00:30]} h4 {[%emt 0:02:01]} 43. Ke2 {[%emt 0:01:30]} f4 {[%emt 0:00:30]} 44. exf4 {[%emt 0:00:30]} Bxf4 {[%emt 0:00:30]} 45. Bxh4 {[%emt 0:00:30]} Kb4 {[%emt 0:00:19]} 46. Be1+ {[%emt 0:49:17]} Kxb3 {[%emt 0:00:30]} 47. Bc3 {[%emt 0:00:08]} Bg3 {[%emt 0:00:08]} 48. Ke3 {[%emt 0:02:43]} Kc2 {[%emt 0:00:30]} 49. Ke2 {[%emt 0:00:30]} Kb3 {[%emt 0:00:30]} 50. Kd2 {[%emt 0:00:30]} Bf4+ {[%emt 0:00:19]} 51. Ke1 {[%emt 0:02:23]} Bg3+ {[%emt 0:00:30]} 52. Kd1 {[%emt 0:00:30]} Bf4 {[%emt 0:00:30]} 53. g4 {[%emt 0:00:30]} Bg5 {[%emt 0:01:31]} 54. Ke2 {[%emt 0:01:21]} Bf6 {[%emt 0:00:15]} 55. Kd1 {[%emt 0:05:45]} g5 {[%emt 0:00:45]} 56. Ke2 {[%emt 0:02:18]} Kc4 {[%emt 0:00:53]} 57. Bd2 {[%emt 0:00:30]} Kb3 {[%emt 0:00:00]} 58. Bc3 {[%emt 0:00:02]} Kc4 {[%emt 0:00:11]} 59. Bd2 {[%emt 0:00:05]} Be7 {[%emt 0:00:32]} 60. Be3 {[%emt 0:00:52]} Kb3 {[%emt 0:00:30]} 61. Bf2 {[%emt 0:01:44]} Kxb2 {[%emt 0:00:28]} 62. Bg3 {[%emt 0:00:06]} Kc3 {[%emt 0:00:44]} 63. Be5 {[%emt 0:00:02]} Kc4 {[%emt 0:00:14]} 64. Ke3 {[%emt 0:00:06]} Ba3 {[%emt 0:00:52]} 65. Kd2 {[%emt 0:00:45]} Bb4+ {[%emt 0:01:14]} 66. Ke3 {[%emt 0:00:14]} Be7 {[%emt 0:00:01]} 67. Kd2 {[%emt 0:00:51]} Kb3 {[%emt 0:00:30]} 68. Bg7 {[%emt 0:00:30]} Bd8 {[%emt 0:00:30]} 69. Be5 {[%emt 0:00:00]} Ba5+ {[%emt 0:01:07]} 70. Ke2 {[%emt 0:00:00]} Bd8 {[%emt 0:00:40]} 1/2-1/2

[Event "8th Mersin Open 2024"]
[Site "Mersin"]
[Date "2024.11.14"]
[Round "7"]
[White "Uzdemir, Ali Poyraz"]
[Black "Bicer, Atakan Mert"]
[Result "1/2-1/2"]
[ECO "B55"]
[WhiteElo "2081"]
[BlackElo "2342"]
[Annotator "RC"]
[PlyCount "98"]
[EventDate "2024.11.10"]
[EventType "swiss"]
[EventCountry "TUR"]
[SourceTitle "playchess.com"]
[Source "ChessBase"]
[SourceQuality "1"]
[TimeControl "5400+30"]

1. e4 {[%emt 0:01:00]} c5 {[%emt 0:04:00]} 2. Nf3 {[%emt 0:00:00]} d6 {[%emt 0:00:00]} 3. d4 {[%emt 0:00:00]} cxd4 {[%emt 0:00:00]} 4. Nxd4 {[%emt 0:00:30]} Nf6 {[%emt 0:00:00]} 5. f3 {[%emt 0:00:00]} e5 {[%emt 0:02:00]} 6. Nb3 {[%emt 0:00:00]} d5 {[%emt 0:05:30]} 7. Bg5 {[%emt 0:00:30]} d4 {[%emt 0:09:30]} 8. c3 {[%emt 0:00:30]} Nc6 {[%emt 0:04:30]} 9. Bb5 {[%emt 0:00:30]} Qb6 {[%emt 0:07:30]} 10. Bxc6+ {[%emt 0:00:30]} bxc6 {[%emt 0:00:30]} 11. cxd4 {[%emt 0:00:30]} Ba6 {[%emt 0:02:30]} 12. dxe5 {[%emt 0:38:30]} Nd7 {[%emt 0:14:30]} 13. Qd4 {[%emt 0:14:30]} Qxd4 {[%emt 0:03:30]} 14. Nxd4 {[%emt 0:00:30]} Nxe5 {[%emt 0:00:00]} 15. Nc3 {[%emt 0:07:30]} h6 {[%emt 0:07:00]} 16. Be3 {[%emt 0:07:30]} Nd3+ {[%emt 0:01:30]} 17. Kd2 {[%emt 0:00:30]} Nxb2 {[%emt 0:02:30]} 18. Kc2 {[%emt 0:00:30]} Nc4 {[%emt 0:01:30]} 19. Bf4 {[%emt 0:00:30]} Bc5 {[%emt 0:12:30]} 20. Rad1 {[%emt 0:04:30]} O-O {[%emt 0:01:30]} 21. Na4 {[%emt 0:01:30]} Be7 {[%emt 0:03:12]} 22. Nxc6 {[%emt 0:03:48]} Bf6 {[%emt 0:02:09]} 23. Nb4 {[%emt 0:00:47]} g5 {[%emt 0:04:37]} 24. Nd5 {[%emt 0:03:03]} Bg7 {[%emt 0:02:58]} 25. Bg3 {[%emt 0:04:58]} Rac8 {[%emt 0:04:29]} 26. Ne7+ {[%emt 0:00:34]} Kh7 {[%emt 0:00:30]} 27. Nxc8 {[%emt 0:00:00]} Rxc8 {[%emt 0:00:00]} 28. Kb3 {[%emt 0:00:36]} Na5+ {[%emt 0:00:09]} 29. Kb4 {[%emt 0:00:30]} Nc6+ {[%emt 0:02:16]} 30. Ka3 {[%emt 0:02:22]} Na5 {[%emt 0:00:36]} 31. Kb4 {[%emt 0:01:10]} Nb7 {[%emt 0:01:36]} 32. Rc1 {[%emt 0:02:43]} Bf8+ {[%emt 0:00:30]} 33. Kb3 {[%emt 0:00:30]} Na5+ {[%emt 0:00:30]} 34. Kb2 {[%emt 0:00:04]} Bg7+ {[%emt 0:00:34]} 35. Ka3 {[%emt 0:00:22]} Bf8+ {[%emt 0:01:28]} 36. Kb2 {[%emt 0:00:13]} Nc4+ {[%emt 0:00:12]} 37. Kb3 {[%emt 0:00:25]} Nd2+ {[%emt 0:01:43]} 38. Kb2 {[%emt 0:00:34]} Bg7+ {[%emt 0:00:30]} 39. Ka3 {[%emt 0:00:00]} Nc4+ {[%emt 0:00:39]} 40. Kb4 {[%emt 0:00:42]} Bf8+ {[%emt 0:00:13]} 41. Kb3 {[%emt 0:00:00]} Na5+ {[%emt 0:00:54]} 42. Kb2 {[%emt 0:00:00]} Nc4+ {[%emt 0:00:40]} 43. Kb3 {[%emt 0:00:28]} Rc6 {[%emt 0:00:30]} 44. Rhd1 {[%emt 0:00:30]} Na5+ {[%emt 0:00:30]} 45. Kb2 {[%emt 0:00:30]} Nc4+ {[%emt 0:00:00]} 46. Kb3 {[%emt 0:03:16]} Na5+ {[%emt 0:00:00]} 47. Kb2 {[%emt 0:00:30]} Nc4+ {[%emt 0:00:26]} 48. Kb3 {[%emt 0:00:30]} Na5+ {[%emt 0:01:20]} 49. Kb2 {[%emt 0:02:52]} Nc4+ {[%emt 0:00:07]} 1/2-1/2

[Event "8th Mersin Open 2024"]
[Site "Mersin"]
[Date "2024.11.14"]
[Round "7"]
[White "Saygin, Nurettin"]
[Black "Cheng, Bindi"]
[Result "1/2-1/2"]
[ECO "A65"]
[WhiteElo "2066"]
[BlackElo "2368"]
[Annotator "RC"]
[PlyCount "76"]
[EventDate "2024.11.10"]
[EventType "swiss"]
[EventCountry "TUR"]
[SourceTitle "playchess.com"]
[Source "ChessBase"]
[SourceQuality "1"]
[TimeControl "5400+30"]

1. d4 {[%emt 0:01:00]} Nf6 {[%emt 0:05:00]} 2. c4 {[%emt 0:00:30]} c5 {[%emt 0:00:30]} 3. d5 {[%emt 0:00:00]} g6 {[%emt 0:00:30]} 4. Nc3 {[%emt 0:00:00]} Bg7 {[%emt 0:00:00]} 5. e4 {[%emt 0:00:30]} d6 {[%emt 0:00:00]} 6. Nge2 {[%emt 0:04:30]} O-O {[%emt 0:03:30]} 7. Ng3 {[%emt 0:01:30]} e6 {[%emt 0:00:30]} 8. Be2 {[%emt 0:00:00]} a6 {[%emt 0:00:00]} 9. a4 {[%emt 0:00:00]} exd5 {[%emt 0:00:00]} 10. cxd5 {[%emt 0:00:30]} Nbd7 {[%emt 0:00:00]} 11. O-O {[%emt 0:00:30]} Rb8 {[%emt 0:00:00]} 12. Be3 {[%emt 0:03:30]} Ne8 {[%emt 0:01:30]} 13. Qd2 {[%emt 0:02:30]} Nc7 {[%emt 0:01:30]} 14. Bh6 {[%emt 0:00:30]} b5 {[%emt 0:00:30]} 15. Bxg7 {[%emt 0:01:30]} Kxg7 {[%emt 0:00:30]} 16. axb5 {[%emt 0:00:30]} axb5 {[%emt 0:03:30]} 17. f4 {[%emt 0:04:30]} b4 {[%emt 0:04:30]} 18. Nd1 {[%emt 0:00:30]} Re8 {[%emt 0:00:00]} 19. f5 {[%emt 0:02:30]} h6 {[%emt 0:04:00]} 20. Ne3 {[%emt 0:04:30]} Ne5 {[%emt 0:22:30]} 21. Rf4 {[%emt 0:02:30]} Nb5 {[%emt 0:24:30]} 22. Raf1 {[%emt 0:17:30]} g5 {[%emt 0:02:30]} 23. f6+ {[%emt 0:01:30]} Kh7 {[%emt 0:00:30]} 24. R4f2 {[%emt 0:03:30]} Nd4 {[%emt 0:00:30]} 25. Nef5 {[%emt 0:04:30]} Bxf5 {[%emt 0:06:30]} 26. Nxf5 {[%emt 0:00:30]} Nxf5 {[%emt 0:00:30]} 27. Rxf5 {[%emt 0:02:30]} Rg8 {[%emt 0:03:27]} 28. Bh5 {[%emt 0:05:30]} c4 {[%emt 0:00:30]} 29. h4 {[%emt 0:03:30]} gxh4 {[%emt 0:01:24]} 30. Qf4 {[%emt 0:00:30]} h3 {[%emt 0:00:30]} 31. Rxe5 {[%emt 0:01:30]} hxg2 {[%emt 0:08:12]} 32. Re7 {[%emt 0:00:30]} Rg5 {[%emt 0:01:08]} 33. Bxf7 {[%emt 0:05:30]} Kh8 {[%emt 0:00:02]} 34. Re8+ {[%emt 0:00:30]} Qxe8 {[%emt 0:03:18]} 35. Bxe8 {[%emt 0:00:00]} Rxe8 {[%emt 0:00:26]} 36. Qxd6 {[%emt 0:02:00]} Rxe4 {[%emt 0:00:30]} 37. Qf8+ {[%emt 0:00:30]} Kh7 {[%emt 0:00:11]} 38. Qf7+ {[%emt 0:06:30]} Kh8 {[%emt 0:00:30]} 1/2-1/2

[Event "8th Mersin Open 2024"]
[Site "Mersin"]
[Date "2024.11.14"]
[Round "7"]
[White "Gulsoy, Mustafa Alpago"]
[Black "Dogan, Nazmi Can"]
[Result "1/2-1/2"]
[ECO "B00"]
[WhiteElo "2040"]
[BlackElo "2218"]
[Annotator "RC"]
[PlyCount "120"]
[EventDate "2024.11.10"]
[EventType "swiss"]
[EventCountry "TUR"]
[SourceTitle "playchess.com"]
[Source "ChessBase"]
[SourceQuality "1"]
[TimeControl "5400+30"]

1. e4 {[%emt 0:01:00]} Nc6 {[%emt 0:01:00]} 2. Nf3 {[%emt 0:00:30]} d6 {[%emt 0:00:00]} 3. d4 {[%emt 0:00:30]} Nf6 {[%emt 0:00:00]} 4. Nc3 {[%emt 0:00:30]} g6 {[%emt 0:00:00]} 5. h3 {[%emt 0:01:30]} Bg7 {[%emt 0:00:00]} 6. Bc4 {[%emt 0:03:30]} Nxe4 {[%emt 0:10:30]} 7. Bxf7+ {[%emt 0:00:30]} Kxf7 {[%emt 0:02:30]} 8. Nxe4 {[%emt 0:00:00]} d5 {[%emt 0:12:30]} 9. Ng3 {[%emt 0:11:00]} e5 {[%emt 0:20:30]} 10. dxe5 {[%emt 0:15:30]} Nxe5 {[%emt 0:01:30]} 11. Nxe5+ {[%emt 0:01:30]} Bxe5 {[%emt 0:00:30]} 12. f4 {[%emt 0:02:30]} Bg7 {[%emt 0:05:30]} 13. O-O {[%emt 0:03:30]} Rf8 {[%emt 0:01:30]} 14. Qd3 {[%emt 0:04:30]} Kg8 {[%emt 0:00:30]} 15. c3 {[%emt 0:06:30]} d4 {[%emt 0:22:17]} 16. c4 {[%emt 0:00:30]} Bf5 {[%emt 0:08:32]} 17. Nxf5 {[%emt 0:00:30]} gxf5 {[%emt 0:00:07]} 18. Bd2 {[%emt 0:10:30]} Qd7 {[%emt 0:01:14]} 19. Rf3 {[%emt 0:05:30]} Rfe8 {[%emt 0:01:36]} 20. g4 {[%emt 0:02:30]} Re4 {[%emt 0:00:44]} 21. Kf2 {[%emt 0:04:30]} Rae8 {[%emt 0:00:16]} 22. Rg1 {[%emt 0:01:30]} Kh8 {[%emt 0:04:10]} 23. gxf5 {[%emt 0:14:51]} Bf6 {[%emt 0:00:24]} 24. Rg4 {[%emt 0:01:39]} Qxf5 {[%emt 0:00:30]} 25. Rfg3 {[%emt 0:00:30]} h5 {[%emt 0:00:30]} 26. Rg6 {[%emt 0:00:30]} Kh7 {[%emt 0:03:15]} 27. Qf3 {[%emt 0:02:04]} Re2+ {[%emt 0:01:18]} 28. Qxe2 {[%emt 0:00:14]} Rxe2+ {[%emt 0:00:38]} 29. Kxe2 {[%emt 0:00:03]} Qe4+ {[%emt 0:01:20]} 30. Kf2 {[%emt 0:03:40]} d3 {[%emt 0:00:51]} 31. Be3 {[%emt 0:03:13]} Bd4 {[%emt 0:00:15]} 32. Bxd4 {[%emt 0:00:34]} Qxf4+ {[%emt 0:00:56]} 33. Kg2 {[%emt 0:00:28]} Qxd4 {[%emt 0:00:12]} 34. R6g5 {[%emt 0:00:28]} Qe4+ {[%emt 0:00:17]} 35. Kh2 {[%emt 0:00:27]} Kh6 {[%emt 0:00:42]} 36. Rd5 {[%emt 0:00:30]} Qxc4 {[%emt 0:00:30]} 37. Rgxd3 {[%emt 0:00:30]} Qxa2 {[%emt 0:00:30]} 38. Rd2 {[%emt 0:00:30]} Qc4 {[%emt 0:00:30]} 39. R5d4 {[%emt 0:00:30]} Qe6 {[%emt 0:00:30]} 40. Rd8 {[%emt 0:00:30]} Qe5+ {[%emt 0:00:30]} 41. Kg2 {[%emt 0:00:00]} a5 {[%emt 0:00:00]} 42. R8d5 {[%emt 0:00:06]} Qe4+ {[%emt 0:00:06]} 43. Kf2 {[%emt 0:00:30]} Qf4+ {[%emt 0:00:30]} 44. Kg2 {[%emt 0:00:30]} h4 {[%emt 0:00:30]} 45. R5d3 {[%emt 0:00:30]} a4 {[%emt 0:00:30]} 46. Re2 {[%emt 0:00:00]} Qc4 {[%emt 0:01:25]} 47. Rde3 {[%emt 0:00:33]} Qd5+ {[%emt 0:00:07]} 48. Re4 {[%emt 0:00:00]} Kg7 {[%emt 0:00:51]} 49. Kh2 {[%emt 0:00:54]} Qd6+ {[%emt 0:00:30]} 50. Kh1 {[%emt 0:00:00]} Qd1+ {[%emt 0:00:01]} 51. Kh2 {[%emt 0:00:00]} Qd6+ {[%emt 0:00:21]} 52. Kg1 {[%emt 0:02:07]} Qc5+ {[%emt 0:00:10]} 53. Rf2 {[%emt 0:00:27]} Kg6 {[%emt 0:00:50]} 54. Rxh4 {[%emt 0:00:31]} b5 {[%emt 0:00:21]} 55. Rg4+ {[%emt 0:00:54]} Kh5 {[%emt 0:00:08]} 56. Rgf4 {[%emt 0:00:28]} Kg6 {[%emt 0:01:40]} 57. Kg2 {[%emt 0:00:42]} Qd5+ {[%emt 0:00:30]} 58. Kg3 {[%emt 0:00:30]} Qe5 {[%emt 0:00:30]} 59. Kg2 {[%emt 0:00:30]} Qd5+ {[%emt 0:00:30]} 60. Kg3 {[%emt 0:00:30]} Qe5 {[%emt 0:00:00]} 1/2-1/2

[Event "8th Mersin Open 2024"]
[Site "Mersin"]
[Date "2024.11.14"]
[Round "7"]
[White "Mahdavi, Armin"]
[Black "Hasirci, Ozgur Deniz"]
[Result "1/2-1/2"]
[ECO "B53"]
[WhiteElo "2038"]
[BlackElo "2128"]
[Annotator "RC"]
[PlyCount "97"]
[EventDate "2024.11.10"]
[EventType "swiss"]
[EventCountry "TUR"]
[SourceTitle "playchess.com"]
[Source "ChessBase"]
[SourceQuality "1"]
[TimeControl "5400+30"]

1. e4 {[%emt 0:01:00]} c5 {[%emt 0:01:00]} 2. Nf3 {[%emt 0:00:30]} d6 {[%emt 0:00:30]} 3. Bb5+ {[%emt 0:00:30]} Nd7 {[%emt 0:00:00]} 4. d4 {[%emt 0:00:30]} cxd4 {[%emt 0:00:00]} 5. Qxd4 {[%emt 0:00:00]} e6 {[%emt 0:00:30]} 6. O-O {[%emt 0:02:00]} a6 {[%emt 0:00:30]} 7. Bxd7+ {[%emt 0:00:30]} Bxd7 {[%emt 0:00:30]} 8. Nc3 {[%emt 0:01:30]} Nf6 {[%emt 0:00:30]} 9. Bg5 {[%emt 0:02:30]} Bc6 {[%emt 0:01:30]} 10. Rad1 {[%emt 0:05:30]} Be7 {[%emt 0:01:30]} 11. Nd2 {[%emt 0:03:30]} b5 {[%emt 0:06:30]} 12. Nb3 {[%emt 0:07:30]} e5 {[%emt 0:02:30]} 13. Qe3 {[%emt 0:08:30]} Rc8 {[%emt 0:10:30]} 14. Bxf6 {[%emt 0:01:30]} Bxf6 {[%emt 0:02:30]} 15. a3 {[%emt 0:02:30]} Be7 {[%emt 0:04:30]} 16. Rfe1 {[%emt 0:07:30]} O-O {[%emt 0:02:30]} 17. Re2 {[%emt 0:03:30]} f5 {[%emt 0:04:30]} 18. exf5 {[%emt 0:02:30]} Rxf5 {[%emt 0:00:30]} 19. Nd5 {[%emt 0:03:30]} Bxd5 {[%emt 0:06:30]} 20. Rxd5 {[%emt 0:01:30]} Qc7 {[%emt 0:00:30]} 21. Qh3 {[%emt 0:04:30]} Rcf8 {[%emt 0:07:30]} 22. Nd4 {[%emt 0:10:30]} R5f6 {[%emt 0:01:30]} 23. Qb3 {[%emt 0:10:34]} Kh8 {[%emt 0:03:30]} 24. Nf3 {[%emt 0:00:30]} Qc8 {[%emt 0:02:30]} 25. Nd2 {[%emt 0:04:34]} Qg4 {[%emt 0:03:30]} 26. f3 {[%emt 0:00:05]} Qh5 {[%emt 0:00:30]} 27. Rd3 {[%emt 0:01:14]} Rh6 {[%emt 0:04:30]} 28. Nf1 {[%emt 0:00:19]} Bd8 {[%emt 0:03:30]} 29. a4 {[%emt 0:02:13]} Bb6+ {[%emt 0:05:30]} 30. Kh1 {[%emt 0:00:30]} Qh4 {[%emt 0:00:30]} 31. Qd5 {[%emt 0:02:38]} Qxa4 {[%emt 0:03:30]} 32. Ra3 {[%emt 0:01:32]} Qf4 {[%emt 0:01:30]} 33. Ra1 {[%emt 0:00:30]} Qg5 {[%emt 0:02:52]} 34. Re4 {[%emt 0:01:12]} Bc5 {[%emt 0:05:58]} 35. Rg4 {[%emt 0:00:30]} Qf5 {[%emt 0:00:30]} 36. Re4 {[%emt 0:01:40]} Qc8 {[%emt 0:03:29]} 37. c3 {[%emt 0:01:09]} Rhf6 {[%emt 0:01:45]} 38. Qa2 {[%emt 0:01:01]} Qc6 {[%emt 0:03:04]} 39. Ng3 {[%emt 0:00:44]} Ra8 {[%emt 0:00:30]} 40. Rh4 {[%emt 0:00:00]} Rxf3 {[%emt 0:01:16]} 41. Qb1 {[%emt 0:00:13]} h6 {[%emt 0:00:25]} 42. Qg6 {[%emt 0:01:01]} Qb7 {[%emt 0:04:51]} 43. Nf5 {[%emt 0:00:46]} Rf8 {[%emt 0:00:30]} 44. Rxh6+ {[%emt 0:03:02]} gxh6 {[%emt 0:00:48]} 45. Qxh6+ {[%emt 0:00:01]} Kg8 {[%emt 0:00:20]} 46. Qg6+ {[%emt 0:00:30]} Kh8 {[%emt 0:00:30]} 47. Qh6+ {[%emt 0:00:30]} Kg8 {[%emt 0:00:30]} 48. Qg6+ {[%emt 0:00:30]} Kh8 {[%emt 0:00:30]} 49. gxf3 {[%emt 0:00:30]} 1/2-1/2

[Event "8th Mersin Open 2024"]
[Site "Mersin"]
[Date "2024.11.14"]
[Round "7"]
[White "Shafei, Hamid"]
[Black "Unsal, Gorkem"]
[Result "1-0"]
[ECO "B01"]
[WhiteElo "2018"]
[BlackElo "2097"]
[Annotator "RC"]
[PlyCount "91"]
[EventDate "2024.11.10"]
[EventType "swiss"]
[EventCountry "TUR"]
[SourceTitle "playchess.com"]
[Source "ChessBase"]
[SourceQuality "1"]
[TimeControl "5400+30"]

1. e4 {[%emt 0:01:00]} d5 {[%emt 0:01:00]} 2. exd5 {[%emt 0:00:30]} Qxd5 {[%emt 0:00:00]} 3. Nc3 {[%emt 0:01:30]} Qa5 {[%emt 0:00:00]} 4. d4 {[%emt 0:00:30]} Nf6 {[%emt 0:00:00]} 5. Nf3 {[%emt 0:00:30]} c6 {[%emt 0:00:00]} 6. Bc4 {[%emt 0:00:30]} Bf5 {[%emt 0:00:00]} 7. O-O {[%emt 0:01:30]} e6 {[%emt 0:00:00]} 8. Bf4 {[%emt 0:02:30]} Nbd7 {[%emt 0:02:30]} 9. a3 {[%emt 0:03:30]} Be7 {[%emt 0:01:30]} 10. b4 {[%emt 0:05:30]} Qd8 {[%emt 0:00:00]} 11. Ne2 {[%emt 0:01:30]} O-O {[%emt 0:02:00]} 12. Ng3 {[%emt 0:00:00]} Bg6 {[%emt 0:01:30]} 13. Re1 {[%emt 0:01:00]} Nd5 {[%emt 0:02:30]} 14. Bd2 {[%emt 0:00:30]} Bf6 {[%emt 0:01:30]} 15. Bb3 {[%emt 0:00:00]} b5 {[%emt 0:05:30]} 16. Ne4 {[%emt 0:03:00]} Bh5 {[%emt 0:05:30]} 17. c3 {[%emt 0:03:30]} N7b6 {[%emt 0:05:30]} 18. Ng3 {[%emt 0:02:30]} Bg6 {[%emt 0:01:30]} 19. Ne5 {[%emt 0:00:30]} Bxe5 {[%emt 0:08:30]} 20. Rxe5 {[%emt 0:00:30]} Nc4 {[%emt 0:04:30]} 21. Bxc4 {[%emt 0:12:30]} bxc4 {[%emt 0:00:30]} 22. h4 {[%emt 0:00:30]} h6 {[%emt 0:04:30]} 23. Qg4 {[%emt 0:05:30]} Nf6 {[%emt 0:03:30]} 24. Qf3 {[%emt 0:03:30]} Nd7 {[%emt 0:01:30]} 25. Ra5 {[%emt 0:00:30]} Qxh4 {[%emt 0:03:30]} 26. Qxc6 {[%emt 0:11:30]} Nf6 {[%emt 0:02:30]} 27. Qf3 {[%emt 0:00:30]} Rfd8 {[%emt 0:07:30]} 28. Re1 {[%emt 0:01:30]} Ng4 {[%emt 0:08:30]} 29. Nf1 {[%emt 0:00:30]} e5 {[%emt 0:01:30]} 30. g3 {[%emt 0:04:30]} Qh3 {[%emt 0:00:30]} 31. Be3 {[%emt 0:00:00]} Nxe3 {[%emt 0:03:30]} 32. fxe3 {[%emt 0:01:00]} exd4 {[%emt 0:01:30]} 33. exd4 {[%emt 0:00:30]} Re8 {[%emt 0:03:30]} 34. Rae5 {[%emt 0:00:30]} Qd7 {[%emt 0:01:30]} 35. Nd2 {[%emt 0:03:30]} Bd3 {[%emt 0:00:44]} 36. Ne4 {[%emt 0:00:30]} Rad8 {[%emt 0:05:22]} 37. Nc5 {[%emt 0:00:30]} Rxe5 {[%emt 0:00:30]} 38. Rxe5 {[%emt 0:04:30]} Qc7 {[%emt 0:01:34]} 39. Qb7 {[%emt 0:04:30]} Qd6 {[%emt 0:02:00]} 40. Qe7 {[%emt 0:00:30]} Qb8 {[%emt 0:01:21]} 41. a4 {[%emt 0:03:30]} Bg6 {[%emt 0:01:20]} 42. a5 {[%emt 0:00:30]} f6 {[%emt 0:00:30]} 43. Ne6 {[%emt 0:00:30]} Bf7 {[%emt 0:00:30]} 44. Nxd8 {[%emt 0:00:30]} fxe5 {[%emt 0:00:30]} 45. Qxf7+ {[%emt 0:00:30]} Kh7 {[%emt 0:00:30]} 46. Ne6 {[%emt 0:00:30]} 1-0

[Event "8th Mersin Open 2024"]
[Site "Mersin"]
[Date "2024.11.14"]
[Round "7"]
[White "Celebi, Mehmet Alper"]
[Black "Ererdem, Gani Eren"]
[Result "0-1"]
[ECO "B07"]
[WhiteElo "2014"]
[BlackElo "2066"]
[Annotator "RC"]
[PlyCount "78"]
[EventDate "2024.11.10"]
[EventType "swiss"]
[EventCountry "TUR"]
[SourceTitle "playchess.com"]
[Source "ChessBase"]
[SourceQuality "1"]
[TimeControl "5400+30"]

1. e4 {[%emt 0:01:00]} d6 {[%emt 0:01:00]} 2. d4 {[%emt 0:00:30]} Nf6 {[%emt 0:00:00]} 3. Nd2 {[%emt 0:01:30]} g6 {[%emt 0:02:00]} 4. Bd3 {[%emt 0:02:30]} Bg7 {[%emt 0:00:30]} 5. Ngf3 {[%emt 0:02:30]} O-O {[%emt 0:00:30]} 6. O-O {[%emt 0:00:30]} c5 {[%emt 0:00:30]} 7. d5 {[%emt 0:07:30]} Na6 {[%emt 0:02:30]} 8. a4 {[%emt 0:04:30]} b6 {[%emt 0:02:30]} 9. c3 {[%emt 0:01:30]} Nc7 {[%emt 0:00:00]} 10. Qe2 {[%emt 0:00:30]} e6 {[%emt 0:06:00]} 11. dxe6 {[%emt 0:10:30]} Nxe6 {[%emt 0:00:30]} 12. Nc4 {[%emt 0:01:30]} Bb7 {[%emt 0:01:30]} 13. Rd1 {[%emt 0:02:30]} Qc7 {[%emt 0:00:30]} 14. Ng5 {[%emt 0:05:30]} Rfe8 {[%emt 0:05:30]} 15. Nf3 {[%emt 0:15:30]} d5 {[%emt 0:06:30]} 16. exd5 {[%emt 0:00:30]} Nxd5 {[%emt 0:05:30]} 17. Be4 {[%emt 0:11:30]} Nef4 {[%emt 0:03:30]} 18. Qc2 {[%emt 0:03:30]} Nb4 {[%emt 0:02:30]} 19. Bxf4 {[%emt 0:02:30]} Qxf4 {[%emt 0:02:30]} 20. cxb4 {[%emt 0:00:30]} Bxe4 {[%emt 0:01:30]} 21. Qd2 {[%emt 0:00:30]} Qg4 {[%emt 0:02:30]} 22. h3 {[%emt 0:00:30]} Qh5 {[%emt 0:28:30]} 23. Ng5 {[%emt 0:02:30]} Bf6 {[%emt 0:10:53]} 24. Nxe4 {[%emt 0:01:30]} Rxe4 {[%emt 0:00:01]} 25. Qc2 {[%emt 0:01:30]} Re2 {[%emt 0:00:30]} 26. Rd2 {[%emt 0:02:06]} Re6 {[%emt 0:05:57]} 27. a5 {[%emt 0:01:25]} Rae8 {[%emt 0:01:37]} 28. axb6 {[%emt 0:02:33]} axb6 {[%emt 0:01:01]} 29. b5 {[%emt 0:03:51]} Bd4 {[%emt 0:03:54]} 30. Rf1 {[%emt 0:04:31]} Qh4 {[%emt 0:01:21]} 31. Qd3 {[%emt 0:00:53]} h5 {[%emt 0:03:21]} 32. Qf3 {[%emt 0:01:51]} Rf6 {[%emt 0:00:20]} 33. Qd3 {[%emt 0:00:47]} g5 {[%emt 0:00:57]} 34. Ne3 {[%emt 0:05:54]} Bxe3 {[%emt 0:01:00]} 35. fxe3 {[%emt 0:00:07]} Rxf1+ {[%emt 0:00:16]} 36. Kxf1 {[%emt 0:00:30]} Qg3 {[%emt 0:00:30]} 37. Re2 {[%emt 0:00:30]} Qe5 {[%emt 0:00:30]} 38. e4 {[%emt 0:00:30]} Re6 {[%emt 0:00:30]} 39. Qf3 {[%emt 0:00:30]} Rf6 {[%emt 0:00:00]} 0-1